Cogmind - Beta 10.2 @@@ ROGUE MODE // 2022.01.06 @ 18:24:51 Player: TLFP Result: Destroyed by as-96322 with Assembled F-torch Performance ------------- Evolutions (0) 0 Regions Visited (2) 400 Robots Destroyed (16) 80 Value Destroyed (334) 334 Prototype IDs (0) 0 Alien Tech Used (0) 0 Bonus (0) 0 TOTAL SCORE: 814 Bonus ------- None Cogmind --------- Core Integrity 0/250 Matter 288/300 Energy 250/250 System Corruption 1% Temperature Cool (28) Movement Rolling (100) Ox2 Location -10/Mines Parts ------- > --- POWER (1) -------- Ion Engine > --- PROPULSION (2) --- Aluminum Leg Wheel > --- UTILITY (2) ------ Medium Storage Unit Medium Storage Unit > --- WEAPON (2) ------- Heavy Battle Rifle > --- INVENTORY (12) --- Light Treads Large Storage Unit High-capacity Matter Pod (200) Transport Network Coupler Mining Laser Peak State ------------ > --- POWER ------------ Ion Engine > --- PROPULSION ------- Light Treads Wheel > --- UTILITY ---------- Medium Storage Unit Medium Storage Unit > --- WEAPON ----------- Heavy Battle Rifle > --- INVENTORY -------- Ion Engine Light Treads Light Treads Aluminum Leg Wheel Large Storage Unit High-capacity Matter Pod Transport Network Coupler Mining Laser [Rating: 9] Favorites ----------- Power Light Ion Engine Engine Light Ion Engine Propulsion Wheel Treads Light Treads Leg Aluminum Leg Wheel Wheel Utility Medium Storage Unit Storage Medium Storage Unit Weapon Medium Laser Energy Gun Medium Laser Ballistic Gun Heavy Battle Rifle Launcher Grenade Launcher Build | -11 -10 -10 ------- Run | Scr Mat Min Slots Evolved . | . . . Power . | . . . Propulsion . | . . . Utility . | . . . Weapon . | . . . Parts Attached 16 | . 11 5 Power 2 | . 1 1 Engine 2 | . 1 1 Core . | . . . Reactor . | . . . Propulsion 5 | . 2 3 Treads 2 | . 1 1 Leg 1 | . . 1 Wheel 2 | . 1 1 Hover . | . . . Flight . | . . . Utility 3 | . 3 . Device . | . . . Storage 3 | . 3 . Processor . | . . . Hackware . | . . . Protection . | . . . Artifact . | . . . Weapon 6 | . 5 1 Energy Gun 3 | . 3 . Energy Cannon . | . . . Ballistic Gun 1 | . . 1 Ballistic Cannon . | . . . Launcher 2 | . 2 . Special Weapon . | . . . Impact Weapon . | . . . Slashing Weapon . | . . . Piercing Weapon . | . . . Special Melee Weapon . | . . . Unidentified Prototypes . | . . . Parts Lost 7 | . 4 3 Power 1 | . 1 . Propulsion 2 | . . 2 Utility . | . . . Weapon 4 | . 3 1 Highest Loss Streak 3 | . 3 2 Average Slot Usage (%) 89 | . 93 78 Engine 13 | . 13 14 Treads 11 | . 12 5 Leg 3 | . 2 8 Wheel 11 | . 12 9 Storage 25 | . 24 28 Energy Gun 13 | . 18 . Ballistic Gun 2 | . . 9 Launcher 5 | . 6 2 Naked Turns . | . . . Heaviest Build 29 | 11 29 25 Greatest Support 20 | 20 20 20 Greatest Overweight (x) 2 | . 2 2 Average Overweight (x) 1 | . . 1 Largest Inventory Capacity 14 | . 14 12 Average Capacity 10 | . 10 12 Most Carried 12 | . 12 10 Average Carried 8 | . 8 6 Final Capacity 12 | 6 12 12 Final Carried 9 | 6 9 5 Class Distribution -------------------- 100% | Mutant Dominant Class ---------------- Mutant | -10/Materials Mutant | -10/Mines Resources | -11 -10 -10 ----------- Run | Scr Mat Min Matter Collected 579 | 200 303 76 Remotely . | . . . Salvage Created 487 | . 433 54 Parts 30 | . 28 2 Haulers Intercepted 1 | . 1 . Recyclers Shooed . | . . . Parts Field Recycled . | . . . Retrieved Matter . | . . . Parts Self-Destructed . | . . . Prevented . | . . . Kills | -11 -10 -10 ------- Run | Scr Mat Min Combat Hostiles Destroyed 16 | . 13 3 Guns 14 | . 11 3 AOE 2 | . 2 . Classes Destroyed 6 | . 4 2 Builder 1 | . . 1 Hauler 1 | . 1 . Operator 1 | . 1 . Swarmer 6 | . 6 . Grunt 7 | . 7 . Assembled 3 | . . 3 Best Kill Streak 3 | . 3 2 Combat Bots Only 3 | . 3 1 Max Kills in Single Turn 2 | . 2 1 Gunslinging . | . . . Exploded 2 | . 2 . Melee . | . . . Uniques/NPCs Destroyed . | . . . Combat | -11 -10 -10 -------- Run | Scr Mat Min Damage Taken 1252 | . 556 696 Core 250 | . 141 109 Absorbed by Shields . | . . . Core Remaining (%) 100 | 100 . . Volleys Fired 76 | . 60 16 Largest 2 | . 2 1 Hottest 90 | . 90 33 Shots Fired 99 | . 83 16 Gun 98 | . 82 16 Cannon . | . . . Launcher 1 | . 1 . Special . | . . . Kinetic 16 | . . 16 Thermal 72 | . 72 . Explosive 1 | . 1 . Electromagnetic 10 | . 10 . Robot Hit Streak 9 | . 9 7 Robot Miss Streak 7 | . 7 2 Penetration Max . | . . . Secondary Targets 2 | . 2 . Max Gunslinging Chain 1 | . 1 . Shots Hit Robots 56 | . 47 9 Core Hits 33 | . 26 7 Critical Hits 1 | . . 1 Critical Kills 1 | . . 1 Critical Parts Destroyed . | . . . Melee Attacks . | . . . Impact . | . . . Slashing . | . . . Piercing . | . . . Sneak Attacks . | . . . Combat Hostiles . | . . . Follow-up Attacks . | . . . Damage Inflicted 922 | . 708 214 Guns 809 | . 595 214 Cannons . | . . . Explosions 113 | . 113 . Melee . | . . . Ramming . | . . . Kinetic 214 | . . 214 Thermal 532 | . 532 . Explosive 113 | . 113 . Electromagnetic 63 | . 63 . Impact . | . . . Slashing . | . . . Piercing . | . . . Highest Corruption 1 | . 1 1 Average Corruption 1 | . 1 1 Corruption Purged . | . . . Effects 3 | . 3 . Message Errors 1 | . 1 . Data Loss (minor) 1 | . 1 . Targeting Errors 1 | . 1 . Overload Shots . | . . . Overflow Damage 1 | . 1 . Projectiles . | . . . Explosions 1 | . 1 . Melee . | . . . Knockbacks . | . . . Impact . | . . . Kinetic . | . . . Secondary . | . . . Self-Inflicted Damage 29 | . 29 . Shots 1 | . 1 . Rammed 1 | . 1 . Targets Rammed 1 | . 1 . Kicked . | . . . Crushed . | . . . Highest Temperature 210 | . 210 16 Average Temperature 64 | . 65 12 Received Heat Transfer 202 | . 162 40 Siege Activations . | . . . Robots Corrupted . | . . . Combat Hostiles . | . . . Parts Fried . | . . . Impact Corruptions . | . . . Robots Melted . | . . . Combat Hostiles . | . . . Parts Melted 1 | . 1 . Heat Transferred 1447 | . 1447 . Parts Sabotaged . | . . . Parts Stolen . | . . . Parts Stripped . | . . . Power Chain Reactions . | . . . Missiles Intercepted . | . . . Alert | -11 -10 -10 ------- Run | Scr Mat Min Peak Influence 255 | . 255 99 Initial 99 | . . 99 Average 104 | . 113 80 Maximum Alert Level 1 | . 1 . Low Security (%) 96 | . 95 100 Level 1 3 | . 4 . Level 2 . | . . . Level 3 . | . . . Level 4 . | . . . Level 5 . | . . . High Security . | . . . Max Security . | . . . Squads Dispatched 3 | . 3 . Investigation 2 | . 2 . Extermination . | . . . Reinforcement 1 | . 1 . Assault . | . . . Garrison . | . . . Intercept . | . . . Construction Impeded . | . . . Haulers Reinforced . | . . . Stealth | -11 -10 -10 --------- Run | Scr Mat Min Distress Signals 2 | . 1 1 Communications Jammed . | . . . Distress Signals . | . . . Times Spotted 34 | . 24 10 Peak Tracking Total 9 | . 4 9 Tactical Retreats 1 | . 1 . Traps | -11 -10 -10 ------- Run | Scr Mat Min Traps Triggered 2 | . 2 . Indirectly . | . . . Trap Hack Attempts . | . . . Triggered . | . . . Disarmed . | . . . Reprogrammed . | . . . Reused . | . . . Traps Extracted . | . . . Installed . | . . . Triggered . | . . . Machines | -11 -10 -10 ---------- Run | Scr Mat Min Machines Disabled . | . . . Max in Single Turn . | . . . Machines Sabotaged . | . . . Garrisons Compromised . | . . . Overloaded Fab Kills . | . . . Fab Network Shutdowns . | . . . Hacking | -11 -10 -10 --------- Run | Scr Mat Min Machines Accessed 5 | . 5 . Terminals 4 | . 4 . Fabricators . | . . . Repair Stations . | . . . Recycling Units 1 | . 1 . Scanalyzers . | . . . Garrison Access . | . . . Total Hacks 12 | . 12 . Successful 7 | . 7 . Failed 5 | . 5 . Catastrophic 1 | . 1 . Database Lockouts . | . . . Manual 10 | . 10 . Terminals 11 | . 11 . Fabricators . | . . . Repair Stations . | . . . Recycling Units 1 | . 1 . Scanalyzers . | . . . Garrison Access . | . . . Terminal Hacks 4 | . 4 . Robot Analysis 1 | . 1 . Branch Access Points 1 | . 1 . Alert Level 1 | . 1 . Zone Layout 1 | . 1 . Fabricator Hacks . | . . . Repair Station Hacks . | . . . Recycling Unit Hacks . | . . . Scanalyzer . | . . . Garrison Access Hacks . | . . . Unauthorized Hacks 3 | . 3 . Terminals 2 | . 2 . Botnet 1 | . 1 . Disrupt 1 | . 1 . Fabricators . | . . . Repair Stations . | . . . Recycling Units 1 | . 1 . Tunnel 1 | . 1 . Scanalyzers . | . . . Garrison Access . | . . . Data Cores Recovered 1 | . 1 . Used 1 | . 1 . Hacking Detections 4 | . 4 . Full Trace Events 3 | . 3 . Feedback Events . | . . . Feedback Blocked . | . . . Robot Schematics Acquired . | . . . Robots Built . | . . . Matter . | . . . Time . | . . . Total Robot Build Rating . | . . . Part Schematics Acquired . | . . . Parts Built . | . . . Matter . | . . . Time . | . . . Total Part Build Rating . | . . . Parts Repaired . | . . . Time . | . . . Parts Recycled . | . . . Recycled Matter . | . . . Retrieved Matter . | . . . Retrieved Components . | . . . Parts Scanalyzed . | . . . Part Schematics Acquired . | . . . Parts Damaged . | . . . Bothacking | -11 -10 -10 ------------ Run | Scr Mat Min Used RIF Installer . | . . . Robots Hacked . | . . . Non-combat . | . . . Combat . | . . . Robot Hacks Applied . | . . . Relay Couplers Released . | . . . Robots Rewired . | . . . Allies Hacked . | . . . Hacks Repelled . | . . . Allies | -11 -10 -10 -------- Run | Scr Mat Min Total Allies . | . . . Largest Group . | . . . Highest-Rated Group . | . . . Highest-Rated Ally . | . . . Total Orders . | . . . Ally Attacks . | . . . Total Damage . | . . . Kills . | . . . Allies Corrupted . | . . . Allies Melted . | . . . Intel | -11 -10 -10 ------- Run | Scr Mat Min Robot Analysis Total 1 | . 1 . Derelict Logs Recovered . | . . . Drone Launches . | . . . Drone Recoveries . | . . . Exploration | -11 -10 -10 ------------- Run | Scr Mat Min Turns Passed 889 | . 657 232 Spaces Moved 479 | 1 334 144 Core . | . . . Treads 184 | . 157 27 Legs 57 | 1 30 26 Wheels 238 | . 147 91 Hover . | . . . Flight . | . . . Fastest Speed 80 | 120 80 100 Average Speed 133 | 120 134 129 Slowest Speed 180 | 120 180 180 Overloaded Moves . | . . . Propulsion Burnouts . | . . . Robots Hopped . | . . . Cave-ins Triggered . | . . . Exploration Rate (%) 35 | 2 60 44 Regions Visited 2 Branch Regions 1 Pre-discovered Areas 1 | . 1 . Known Exits Taken 1 | . 1 . Unknown Exits Taken 1 | 1 . . Scrap Searched 1 | . . 1 Spaces Dug . | . . . Terrain Destroyed 13 | . 9 4 Melee . | . . . Projectile 4 | . . 4 AOE 9 | . 9 . Terrain Rammed . | . . . Walls Destroyed . | . . . Machines Disabled . | . . . Actions | -11 -10 -10 --------- Run | Scr Mat Min Total 631 | . 457 174 Wait 46 | . 40 6 Move 477 | . 333 144 Hop . | . . . Pick Up 9 | . 8 1 Fast Attach 1 | . 1 . Attach 7 | . 4 3 Detach 1 | . 1 . Swap 8 | . 6 2 Drop 5 | . 3 2 Fire 76 | . 60 16 Melee . | . . . Ram . | . . . Kick . | . . . Crush 1 | . 1 . Escape Stasis . | . . . Rewire . | . . . Trap . | . . . Miscellaneous . | . . . Route ------- -11/Scrapyard -10/Materials (discovered 2 exits: [*Mat] / *Min) -10/Mines (discovered 1 exit: [*Mat]) History --------- Turn | Location | Event 1 | -11/Scrapyard | Discovered new exit (range 0) 1 | -11/Scrapyard | Entered Materials 25 | -10/Materials | Identified exit to Mines 300 | -10/Materials | Build established: Mutant 522 | -10/Materials | Discovered new exit (range 10) 608 | -10/Materials | Core integrity fell below 50% 646 | -10/Materials | Lost 3 parts (3w) 658 | -10/Materials | Entered Mines 668 | -10/Mines | Assembled infested the area 673 | -10/Mines | Assisted by a Guerilla fighting off Assembled 733 | -10/Mines | A weapon hastily lodged in a ceiling crevice suddenly fell to the ground 758 | -10/Mines | Core integrity fell below 20% 830 | -10/Mines | Discovered new exit (range 4) 890 | -10/Mines | Destroyed by as-96322 with Assembled F-torch Last Messages --------------- 00813_ U-05 Engineer lays Concrete. 00815_ The unstable cave ceiling collapses. 00816_ U-05 Engineer lays Concrete. 00817_ U-05 Engineer builds a Wall. 00826_ K-01 Serf collects debris. 00828_ as-14234 suffers critical hit. 00828_ as-14234 destroyed. 00830_ EXIT=FOUND 00830_ K-01 Serf collects debris. 00842_ Acquired 11 matter. 00843_ Acquired 25 matter. 00848_ Acquired 7 matter. 00848_ K-01 Serf collects debris. 00879_ Searching scrap... 00879_ Found 30 Matter. 00879_ Found ECM Suite. 00879_ Found Sml. Laser. 00879_ Found 20 Matter. 00885_ as-45839 destroyed. [Achievement: Back For More] Map ----- +----------------------------------------------------+ | ??????????????????????????????????????????# ## | | ??????????????????????????????????????????# # # | | ?????????????????????????????????????????## # | | ?????????????????????????????????????????# # | | ?????????????????????????????????????????## ## | | ????????????????????????????????????????## | | ????????????????????????????????????????# # # " | | ????????????????????????????????????????## # # | | ?????????????????????????????????????????# ## | | ?????????????????????????????????????##### ## # | | ????????????????????????????????????## ## #### # | | ????????????????????????????????????# < ! ### | | ????????????????????????????????????# ### | | ?????????????????????????????###????# ! #? | | ????????????????????????????# ##???# ## ##? | | ??????????????????????????## ##??# #?# %##?? | | ?????????????????????????? #??##??# ##??? | | ?????????????????????????? ???????# ###???? | | ?????????????????????????? ????????# #?????? | | ????????????????????????## #????????# #?????? | | ???????????????????????## #???????## #?????? | | ???????????????????????# % #????????# #??###? | | ???????????????????????? a #?????????# ###?## # | | ???????????????????????? #??????????# #???# | | ????????????????????????#a #???????????# #???# | | ????????????????????????#@#????????????# #???# | | ????????????????????????# #????????????#%#???# | | ????????????????????????#!####?????????# #???## | | ????????????????????????#%%[ #######???# #????### | | ????????????????????????####!=!%!=|#???# #??????## | | ???????????????????????????# ##### #???# #???????# | | ???????????????????????????# #???# #?### #?????#?? | | ???????????????????????????# #???# ### ### ##? | | ??????????????????????###### ##### #? | | ??????????????????????# #? | | ??????????????????????# #? | | ??????????????????????## ###### #? | | ???????????????????????## #????## #? | | ????????????????????????# #?????# #? | | ???????????????????????# #?????## ##? | | ??????????????????????# ??????## ##?? | | ??????????????????????# ??????# #??? | | ??????????????????????## ??????# #?? | | ???????????????????????## ##?????# #? | | ????????????????????????# ###?????? ? | | ????????????????????????# ##???????? | | ????????????????????????# ?????????? ## ?? | | ????????????????????????# ?????????? ##?????? | | ????????????????????????# ?????????? #??????? | | ???????????????????????? ??????????? ????????? | +----------------------------------------------------+ Best States ------------- Heat Dissipation 25 Energy Generation 10 Energy Capacity 250 Matter Stores 300 Matter Capacity 300 Sight Range 16 Terrain Scan Density 10 Evasion (%) 44 Recoil Reduction 1 Item Schematics ----------------- None Robot Schematics ------------------ None Fabricated ------------ Nothing Alien Tech Used ----------------- None Achievements -------------- Back For More Challenges ------------ None Game ------ Seed FortressProtonPit Manual? 0 Play Time 00:10:28 Cumulative 78.1 hours Start 2022.01.06 @ 18:16:48 End 2022.01.06 @ 18:24:51 Sessions 1 Manual Loads 0 Difficulty Rogue Special Mode None Game No. 50 Rogue 13 Adventurer 32 Explorer 5 Win Type - Total 1 Types 1/0/0/0/0/0/0/0/0 Lore% 50 Gallery% 57 Achievement% 48 Wizard Run 0 Options --------- ASCII 0 Keyboard 0 Movement Mouse Keybinds 0 Fullscreen 1 Font 18/SmallcapsGlow Map View 76x50 Tactical HUD 1 Map Filters NONE Filters NONE Steam 1 RUN: 2eb085a4-4b3e-405c-96c4-367286e1ae4b